Workbook

Sheet اذن صرف (hidden)
B2: وزارة الصحة والسكان | N2: بحث برقم القرار
B3: مديرية الشئون الصحية بالجيزة
B4: مستشفى اوسيم المركزى
D5: إذن صـــرف | N5: 123
B7: الاســــم: | C7: =VLOOKUP(N5,data00,2,0) -> حسام عبدالمحسن | H7: التاريخ: | I7: =VLOOKUP(C7,data,2,FALSE) -> 2018-08-26 | Q7: د/ اية حسن محمد
Q8: د/ اية عبدالناصر زكريا
B9: رقم | C9: اســــــم الصنف | D9: الكمية | F9: السعـــــــر | Q9: د/مونيكا مجدى
F10: بيع الجمهور | H10: شراء المناقصة | J10: 0.05 | K10: 0.02 | L10: الاجمالى | Q10: د/منة الله ابراهيم محمد
B11: الصنف | D11: المنصرفة | F11: وحدة | G11: مجموع | H11: وحدة | I11: مجموع | L11: بعد زيادة النسبة
B12: =VLOOKUP(N5,data00,4,0) -> 1 | C12: =IFERROR(VLOOKUP(B12,datahosam,2,0),"") -> انسولين | D12: =VLOOKUP(N5,data00,5,0) -> 10 | E12: =IFERROR(VLOOKUP(B12,datahosam,3,0),"") -> فيال | H12: =IFERROR(VLOOKUP(B12,datahosam,4,0),"") -> 27.09 | I12: =IFERROR(H12*D12,"") -> 270.9
B13: =VLOOKUP(C7,data,5,FALSE) -> 525 | C13: سيدوفاج850م | D13: =VLOOKUP(C7,data,6,FALSE) -> 12 | E13: شريط | H13: 1.33 | I13: =IFERROR(H13*D13,"") -> 15.96
B14: =VLOOKUP(C7,data,7,FALSE) -> 0 | D14: =VLOOKUP(C7,data,8,FALSE) -> 0
B15: =VLOOKUP(C7,data,9,FALSE) -> 0 | C15: =IFERROR(VLOOKUP(B15,datahosam,2,0),"") ->  | D15: =VLOOKUP(C7,data,10,FALSE) -> 0
B16: =VLOOKUP(C7,data,11,FALSE) -> 0 | D16: =VLOOKUP(C7,data,12,FALSE) -> 0
B17: =VLOOKUP(C7,data,13,FALSE) -> 0 | D17: =VLOOKUP(C7,data,14,FALSE) -> 0
B18: =VLOOKUP(C7,data,15,FALSE) -> 0 | D18: =VLOOKUP(C7,data,16,FALSE) -> 0
B19: =VLOOKUP(C7,data,17,FALSE) -> 0 | D19: =VLOOKUP(C7,data,18,FALSE) -> 0
B20: =VLOOKUP(C7,data,19,FALSE) -> 0 | D20: =VLOOKUP(C7,data,20,FALSE) -> 0
B21: =VLOOKUP(C7,data,21,FALSE) -> 0 | D21: =VLOOKUP(C7,data,22,FALSE) -> 0
B22: =VLOOKUP(C7,data,23,FALSE) -> 0 | D22: =VLOOKUP(C7,data,24,FALSE) -> 0 | F22: =IFERROR(VLOOKUP(B22,datahosam,5,0),"") ->  | G22: =IFERROR(D22*F22,"") -> 
B23: =VLOOKUP(C7,data,25,FALSE) -> 0 | D23: =VLOOKUP(C7,data,26,FALSE) -> 0
B24: =VLOOKUP(C7,data,27,FALSE) -> 0 | C24: =IFERROR(VLOOKUP(B24,datahosam,2,0),"") ->  | D24: =VLOOKUP(C7,data,28,FALSE) -> 0
B25: =VLOOKUP(C7,data,29,FALSE) -> 0 | D25: =VLOOKUP(C7,data,30,FALSE) -> 0
B26: =VLOOKUP(C7,data,31,FALSE) -> 0 | D26: =VLOOKUP(C7,data,32,FALSE) -> 0
B27: =VLOOKUP(C7,data,33,FALSE) -> 0 | D27: =VLOOKUP(C7,data,34,FALSE) -> 0 | I27: =SUM(I12:I26) -> 286.86 | L27: =I27+I29+I30 -> 306.9402
B28: =VLOOKUP(C7,data,35,FALSE) -> 0 | D28: =VLOOKUP(C7,data,36,FALSE) -> 0 | E28: بناءا على قرار الوزير رقم689 لسنه2014م يتم إضافة
B29: =VLOOKUP(C7,data,37,FALSE) -> 0 | D29: =VLOOKUP(C7,data,38,FALSE) -> 0 | F29: 0.05 | G29: للمستشفى وقيمتها | I29: =I27*5/100 -> 14.343
B30: =VLOOKUP(C7,data,39,FALSE) -> 0 | D30: =VLOOKUP(C7,data,40,FALSE) -> 0 | F30: 0.02 | G30: للمديرية والوزارة | I30: =I27*2/100 -> 5.7372
B31: =VLOOKUP(C7,data,41,FALSE) -> 0 | D31: =VLOOKUP(C7,data,42,FALSE) -> 0
B32: =VLOOKUP(C7,data,43,FALSE) -> 0 | D32: =VLOOKUP(C7,data,44,FALSE) -> 0
B33: =VLOOKUP(C7,data,45,FALSE) -> 0 | D33: =VLOOKUP(C7,data,46,FALSE) -> 0
B34: =VLOOKUP(C7,data,47,FALSE) -> 0 | D34: =VLOOKUP(C7,data,48,FALSE) -> 0
B35: =VLOOKUP(C7,data,49,FALSE) -> 0 | D35: =VLOOKUP(C7,data,50,FALSE) -> 0
B36: =VLOOKUP(C7,data,51,FALSE) -> 0 | D36: =VLOOKUP(C7,data,52,FALSE) -> 0
B37: =VLOOKUP(C7,data,53,FALSE) -> 0 | D37: =VLOOKUP(C7,data,54,FALSE) -> 0
B38: =VLOOKUP(C7,data,55,FALSE) -> 0 | D38: =VLOOKUP(C7,data,56,FALSE) -> 0
B39: =VLOOKUP(C7,data,57,FALSE) -> 0 | D39: =VLOOKUP(C7,data,58,FALSE) -> 0
C40: صيدلية | I40: مدير عام المستشفى
C41: د/ اية عبدالناصر زكريا | I41: د/مجدى عبدالفتاح ناصر
B44: وزارة الصحة والسكان
B45: مديرية الشئون الصحية بالجيزة
B46: مستشفى اوسيم المركزى
C47: فاتـــــورة | H47: 2717
B49: الاســــم: | C49: =VLOOKUP(N5,data00,2,0) -> حسام عبدالمحسن | H49: التاريخ: | I49: =VLOOKUP(C49,data,2,FALSE) -> 2018-08-26
B51: رقم | C51: اســــــم الصنف | D51: الكمية | F51: السعـــــــر
F52: شراء المناقصة | K52: الاجمالى
B53: الصنف | D53: المنصرفة | F53: وحدة | H53: مجموع
B54: =VLOOKUP(N5,data00,4,0) -> 1 | C54: =IFERROR(VLOOKUP(B54,datahosam,2,0),"") -> انسولين | D54: =VLOOKUP(N5,data00,5,0) -> 10 | E54: =IFERROR(VLOOKUP(B54,datahosam,3,0),"") -> فيال | F54: =IFERROR(VLOOKUP(B54,datahosam,4,0),"") -> 27.09 | H54: =IFERROR(F54*D54,"") -> 270.9
B55: =VLOOKUP(C49,data,5,FALSE) -> 525 | C55: سيدوفاج850م | D55: =VLOOKUP(C49,data,6,FALSE) -> 12 | E55: شريط | F55: 1.33 | H55: =IFERROR(F55*D55,"") -> 15.96
B56: =VLOOKUP(C49,data,7,FALSE) -> 0 | D56: =VLOOKUP(C49,data,8,FALSE) -> 0
B57: =VLOOKUP(C49,data,9,FALSE) -> 0 | C57: =IFERROR(VLOOKUP(B57,datahosam,2,0),"") ->  | D57: =VLOOKUP(C49,data,10,FALSE) -> 0
B58: =VLOOKUP(C49,data,11,FALSE) -> 0 | C58: =IFERROR(VLOOKUP(B58,datahosam,2,0),"") ->  | D58: =VLOOKUP(C49,data,12,FALSE) -> 0
B59: =VLOOKUP(C49,data,13,FALSE) -> 0 | D59: =VLOOKUP(C49,data,14,FALSE) -> 0
B60: =VLOOKUP(C49,data,15,FALSE) -> 0 | D60: =VLOOKUP(C49,data,16,FALSE) -> 0
B61: =VLOOKUP(C49,data,17,FALSE) -> 0 | D61: =VLOOKUP(C49,data,18,FALSE) -> 0
B62: =VLOOKUP(C49,data,19,FALSE) -> 0 | D62: =VLOOKUP(C49,data,20,FALSE) -> 0
B63: =VLOOKUP(C49,data,21,FALSE) -> 0 | D63: =VLOOKUP(C49,data,22,FALSE) -> 0
B64: =VLOOKUP(C49,data,23,FALSE) -> 0 | D64: =VLOOKUP(C49,data,24,FALSE) -> 0
B65: =VLOOKUP(C49,data,25,FALSE) -> 0 | D65: =VLOOKUP(C49,data,26,FALSE) -> 0
B66: =VLOOKUP(C49,data,27,FALSE) -> 0 | C66: =IFERROR(VLOOKUP(B66,datahosam,2,0),"") ->  | D66: =VLOOKUP(C49,data,28,FALSE) -> 0
B67: =VLOOKUP(C49,data,29,FALSE) -> 0 | C67: =IFERROR(VLOOKUP(B67,datahosam,2,0),"") ->  | D67: =VLOOKUP(C49,data,30,FALSE) -> 0
B68: =VLOOKUP(C49,data,31,FALSE) -> 0 | D68: =VLOOKUP(C49,data,32,FALSE) -> 0 | H68: =IFERROR(VLOOKUP(B68,datahosam,4,0),"") ->  | I68: =IFERROR(H68*D68,"") -> 
B69: =VLOOKUP(C49,data,33,FALSE) -> 0 | D69: =VLOOKUP(C49,data,34,FALSE) -> 0 | H69: =SUM(H54:H68) -> 286.86 | K69: =H69+I71+I72 -> 306.9402
B70: =VLOOKUP(C49,data,35,FALSE) -> 0 | D70: =VLOOKUP(C49,data,36,FALSE) -> 0
B71: =VLOOKUP(C49,data,37,FALSE) -> 0 | D71: 0.05 | E71: إداريات للمستشفى وقيمتها | I71: =H69*5/100 -> 14.343
B72: =VLOOKUP(C49,data,39,FALSE) -> 0 | D72: 0.02 | E72: إداريات للمديرية والوزارة وقيمتها | I72: =H69*2/100 -> 5.7372
B73: =VLOOKUP(C49,data,41,FALSE) -> 0 | D73: =VLOOKUP(C49,data,42,FALSE) -> 0
B74: =VLOOKUP(C49,data,43,FALSE) -> 0 | D74: =VLOOKUP(C49,data,44,FALSE) -> 0
B75: =VLOOKUP(C49,data,45,FALSE) -> 0 | D75: =VLOOKUP(C49,data,46,FALSE) -> 0
B76: =VLOOKUP(C49,data,47,FALSE) -> 0 | D76: =VLOOKUP(C49,data,48,FALSE) -> 0
B77: =VLOOKUP(C49,data,49,FALSE) -> 0 | C77: =IFERROR( "فقط" & " "&[1]!Ar_WriteDownNumber(K69,"جنيها","مليم",1000) & " " & "مصرى لاغير","") -> فقط ثلاثمائة و ستة جنيها و تسعمائة و أربعون مليم مصرى لاغير
B78: =VLOOKUP(C49,data,51,FALSE) -> 0 | D78: =VLOOKUP(C49,data,52,FALSE) -> 0
B79: =VLOOKUP(C49,data,53,FALSE) -> 0 | C79: تاريخ اول صرف | D79: 2018-10-01
B80: =VLOOKUP(C49,data,55,FALSE) -> 0 | C80: المتبقى من القرار | D80: =SUMIFS(المتبقى!$E:$E,المتبقى!$B:$B,$C$7,المتبقى!$A:$A,$N$5) -> 774.79
B81: =VLOOKUP(C49,data,57,FALSE) -> 0 | D81: =VLOOKUP(C49,data,58,FALSE) -> 0
C82: صيدلية | E82: المدير المالى والإدارى | I82: مدير عام المستشفى
C83: د/ اية حسن محمد | E83: أ/ عبدالنبى محمد عبدالحميد | I83: د/مجدى عبدالفتاح ناصر

Sheet data (hidden)
P1: $C$952
N5: 5885411 | O5: 5885411
E7: .
B8: رقم القرار | C8: الاسم | E8: صنف1 | F8: عدد | G8: صنف2 | H8: عدد | I8: صنف3 | J8: عدد | K8: صنف4 | L8: عدد | M8: صنف5 | N8: عدد | O8: صنف6 | P8: عدد | Q8: صنف7 | R8: عدد | S8: صنف8 | T8: عدد | U8: صنف9 | V8: عدد | W8: صنف10 | X8: عدد | Y8: صنف11 | Z8: عدد | AA8: صنف12 | AB8: عدد | AC8: صنف13 | AD8: عدد | AE8: صنف14 | AF8: عدد | AG8: صنف15 | AH8: عدد
B9: 9084174 | C9: نصر محمد عمر | D9: 2018-08-05 | E9: 343 | F9: 8 | G9: 768/1 | H9: 5
B10: 993540 | C10: عزه محمد حسن | D10: 2018-08-05 | E10: 265 | F10: 18 | G10: 421 | H10: 9 | I10: 825 | J10: 12
B11: 9244347 | C11: عبدالتواب محمد ابراهيم | D11: 2018-08-05 | E11: 343 | F11: 8
B12: 9210010 | C12: سميره احمد محمد | D12: 2018-08-05 | E12: 343 | F12: 8
B13: 9493940 | C13: شعبان عبدالوهاب علي | D13: 2018-08-05 | E13: 343 | F13: 8
B14: 9550427 | C14: صبيحه مغاوري اسماعيل | D14: 2018-08-05 | E14: 1 | F14: 9 | G14: 525 | H14: 9 | I14: 825 | J14: 12 | K14: 104 | L14: 9
B15: 9403811 | C15: هدي مسعود شربيني | D15: 2018-08-05 | E15: 488 | F15: 12 | G15: 525 | H15: 6 | I15: 825 | J15: 8 | K15: 104 | L15: 6 | M15: 265 | N15: 12 | O15: 68 | P15: 6 | Q15: 421 | R15: 6
B16: 9286385 | C16: سحر محمد عبدالمجيد | D16: 2018-08-05 | E16: 1 | F16: 6 | G16: 525 | H16: 6 | I16: 825 | J16: 8 | K16: 104 | L16: 6 | M16: 421 | N16: 6 | O16: 265 | P16: 12
B17: 9579792 | C17: زينب سيد عبدالعاطي | D17: 2018-08-05 | E17: 488 | F17: 18 | G17: 525 | H17: 9 | I17: 825 | J17: 12 | K17: 104 | L17: 9 | M17: 68 | N17: 9 | O17: 421 | P17: 9
B18: 9463436 | C18: احمد محمود سيد | D18: 2018-08-05 | E18: 1 | F18: 6 | G18: 825 | H18: 8 | I18: 104 | J18: 6 | K18: 525 | L18: 6 | M18: 68 | N18: 12 | O18: 68 | P18: 6
B19: 9318529 | C19: مدينه محمد ابراهيم | D19: 2018-08-05 | E19: 488 | F19: 12 | G19: 525 | H19: 6 | I19: 825 | J19: 8 | K19: 104 | L19: 6 | M19: 265 | N19: 12 | O19: 68 | P19: 6 | Q19: 421 | R19: 6
B20: 9139655 | C20: حمديه شحات محمود | D20: 2018-08-05 | E20: 488 | F20: 6 | G20: 525 | H20: 3 | I20: 265 | J20: 6 | K20: 825 | L20: 4 | M20: 104 | N20: 3 | O20: 421 | P20: 3 | Q20: 68 | R20: 3
B21: 9550584 | C21: نادي حسن ابوالعلا | D21: 2018-08-05 | E21: 488 | F21: 18 | G21: 525 | H21: 9 | I21: 421 | J21: 9 | K21: 825 | L21: 12 | M21: 68 | N21: 9
B22: 1001696 | C22: رانيا عبدالعاطي السيد | D22: 2018-08-05 | E22: 421 | F22: 9 | G22: 1 | H22: 9 | I22: 525 | J22: 9 | K22: 825 | L22: 12 | M22: 104 | N22: 9 | O22: 265 | P22: 9 | Q22: 391 | R22: 9 | S22: 68 | T22: 9
B23: 9018691 | C23: صباح عيد فضل فضل الله | D23: 2018-08-05 | E23: 1 | F23: 3 | G23: 525 | H23: 3 | I23: 825 | J23: 4 | K23: 104 | L23: 3 | M23: 265 | N23: 6
B24: 9467355 | C24: علي عبدالقادر محمد | D24: 2018-08-05 | E24: 1 | F24: 9 | G24: 525 | H24: 9 | I24: 825 | J24: 12 | K24: 265 | L24: 9 | M24: 104 | N24: 9 | O24: 68 | P24: 9
B25: 9550572 | C25: صابر انور عبدالحميد | D25: 2018-08-05 | E25: 488 | F25: 18 | G25: 525 | H25: 9 | I25: 265 | J25: 9 | K25: 421 | L25: 9
B26: 9139724 | C26: هدي عبدالسلام محمد | D26: 2018-08-05 | E26: 1 | F26: 3 | G26: 525 | H26: 3 | I26: 825 | J26: 4 | K26: 104 | L26: 3 | M26: 421 | N26: 3 | O26: 68 | P26: 3
B27: 9139720 | C27: ورده هلال عبدالحميد | D27: 2018-08-05 | E27: 488 | F27: 6 | G27: 525 | H27: 3 | I27: 825 | J27: 4 | K27: 104 | L27: 3 | M27: 421 | N27: 3 | O27: 68 | P27: 3
B28: 9347036 | C28: خضره سيد احمد | D28: 2018-08-05 | E28: 488 | F28: 12 | G28: 525 | H28: 6 | I28: 265 | J28: 12 | K28: 825 | L28: 8 | M28: 104 | N28: 6
B29: 9536721 | C29: حنان كمال عبدالسلام | D29: 2018-08-05 | E29: 1 | F29: 9 | G29: 525 | H29: 9 | I29: 825 | J29: 12 | K29: 104 | L29: 9
B30: 9954812 | C30: فايزه عبدالسلام السيد | D30: 2018-08-05 | E30: 1 | F30: 9 | G30: 825 | H30: 12 | I30: 421 | J30: 9 | K30: 104 | L30: 9
B31: 9384258 | C31: خيريه محمود هنداوي | D31: 2018-08-05 | E31: 488 | F31: 12 | G31: 525 | H31: 6 | I31: 825 | J31: 8 | K31: 68 | L31: 6
B32: 9463444 | C32: احلام مصطفي منصور | D32: 2018-08-05 | E32: 1 | F32: 6 | G32: 525 | H32: 6 | I32: 825 | J32: 8 | K32: 104 | L32: 6 | M32: 421 | N32: 6 | O32: 68 | P32: 6
B33: 9376615 | C33: سعودي ابراهيم عبدالرحمن | D33: 2018-08-05 | E33: 343 | F33: 8
B34: 9467351 | C34: مريم عبدالرحمن عبدالعاطي | D34: 2018-08-05 | E34: 1 | F34: 6 | G34: 525 | H34: 6 | I34: 265 | J34: 12 | K34: 421 | L34: 6 | M34: 825 | N34: 12
B35: 9073631 | C35: دوابه مبروك جاد | D35: 2018-08-05 | E35: 343 | F35: 8
B36: 9172555 | C36: وفاء فايز اسماعيل | D36: 2018-08-05 | E36: 295 | F36: 3 | G36: 1 | H36: 3 | I36: 525 | J36: 3 | K36: 825 | L36: 4 | M36: 79 | N36: 6 | O36: 276 | P36: 3 | Q36: 243 | R36: 6 | S36: 231 | T36: 6 | U36: 421 | V36: 3
B37: 9064160 | C37: ماجده محمد عبدالمنعم | D37: 2018-08-05 | E37: 343 | F37: 8
B38: 9550508 | C38: سلطان حسن عبدالجواد | D38: 2018-08-05 | E38: 488 | F38: 18 | G38: 825 | H38: 12 | I38: 104 | J38: 9
B39: 9969282 | C39: وفاء عبدالمنعم السيد | D39: 2018-08-05 | E39: 1 | F39: 6 | G39: 2 | H39: 18 | I39: 295 | J39: 9 | K39: 312 | L39: 9 | M39: 825 | N39: 12 | O39: 421 | P39: 9 | Q39: 265 | R39: 18 | S39: 391 | T39: 9 | U39: 623 | V39: 3
B40: 9436965 | C40: حامديه جمعه احمد | D40: 2018-08-05 | E40: 265 | F40: 12 | G40: 1 | H40: 6 | I40: 525 | J40: 6 | K40: 104 | L40: 6 | M40: 825 | N40: 8 | O40: 243 | P40: 12
B41: 9460534 | C41: وفاء عوف عبدالرحمن | D41: 2018-08-05 | E41: 1 | F41: 6 | G41: 525 | H41: 6 | I41: 825 | J41: 8 | K41: 104 | L41: 6 | M41: 68 | N41: 6
B42: 9172025 | C42: سعاد عبدالرحيم محمد | D42: 2018-08-05 | E42: 343 | F42: 8
B43: 9496077 | C43: احمد سمير احمد | D43: 2018-08-05 | E43: 343 | F43: 8
B44: 9073625 | C44: حماده عبدالنبي عبدالمجيد | D44: 2018-08-05 | E44: 343 | F44: 8
B45: 9822024 | C45: صابرين جمعه حسن | D45: 2018-08-05 | E45: 488 | F45: 18 | G45: 825 | H45: 12
B46: 9224611 | C46: تحيه عبده علي | D46: 2018-08-05 | E46: 1 | F46: 3 | G46: 525 | H46: 3 | I46: 825 | J46: 4 | K46: 104 | L46: 3 | M46: 265 | N46: 6 | O46: 391 | P46: 3
B47: 9590481 | C47: سناء منصور بيومي | D47: 2018-08-05 | E47: 343 | F47: 4 | G47: 243 | H47: 2
B48: 9318345 | C48: ثناء عبدالعال محمد | D48: 2018-08-05 | E48: 1 | F48: 6 | G48: 525 | H48: 6 | I48: 825 | J48: 8 | K48: 2 | L48: 12 | M48: 312 | N48: 6 | O48: 265 | P48: 12 | Q48: 391 | R48: 12
B49: 9952429 | C49: انشراح رشوان محمد | D49: 2018-08-05 | E49: 488 | F49: 18 | G49: 525 | H49: 9 | I49: 825 | J49: 12 | K49: 104 | L49: 9 | M49: 421 | N49: 9 | O49: 68 | P49: 9
B50: 9921792 | C50: سعاد مهني سويف | D50: 2018-08-05 | E50: 1 | F50: 9 | G50: 525 | H50: 9 | I50: 825 | J50: 12 | K50: 104 | L50: 9 | M50: 68 | N50: 9 | O50: 421 | P50: 9
B51: 9646145 | C51: فتحيه السيد منصور | D51: 2018-08-05 | E51: 343 | F51: 8
B52: 9318568 | C52: محمد سيد اصيل | D52: 2018-08-05 | E52: 1 | F52: 6 | G52: 525 | H52: 6 | I52: 825 | J52: 8 | K52: 104 | L52: 6 | M52: 68 | N52: 6 | O52: 421 | P52: 6
B53: 9415827 | C53: عليه عبدالعزيز علي | D53: 2018-08-05 | E53: 1 | F53: 6 | G53: 525 | H53: 6 | I53: 825 | J53: 8 | K53: 104 | L53: 6 | M53: 68 | N53: 6 | O53: 421 | P53: 6 | Q53: 265 | R53: 12
B54: 9501457 | C54: عيد عبدالكريم عطيه | D54: 2018-08-05 | E54: 343 | F54: 8
B55: 9446510 | C55: جمال محمد علي | D55: 2018-08-05 | E55: 265 | F55: 12 | G55: 488 | H55: 12 | I55: 525 | J55: 6 | K55: 825 | L55: 8 | M55: 68 | N55: 6 | O55: 421 | P55: 6
B56: 9944833 | C56: صباح عبدالكريم ابوالسعود | D56: 2018-08-05 | E56: 1 | F56: 9 | G56: 265 | H56: 18 | I56: 825 | J56: 12 | K56: 104 | L56: 9 | M56: 421 | N56: 9 | O56: 68 | P56: 9
B57: 9578538 | C57: سعاد علي محمد | D57: 2018-08-05 | E57: 1 | F57: 9 | G57: 525 | H57: 9 | I57: 825 | J57: 12 | K57: 68 | L57: 9 | M57: 265 | N57: 18 | O57: 421 | P57: 9
B58: 9375986 | C58: فاطمه عبدالعزيز محمود | D58: 2018-08-06 | E58: 343 | F58: 8
B59: 9536465 | C59: وفاء محمد مبروك | D59: 2018-08-06 | E59: 1 | F59: 9 | G59: 525 | H59: 9 | I59: 825 | J59: 12 | K59: 104 | L59: 9 | M59: 68 | N59: 9 | O59: 421 | P59: 9
B60: 10064277 | C60: نصره سيد محمد | D60: 2018-08-06 | E60: 488 | F60: 18 | G60: 525 | H60: 9 | I60: 825 | J60: 12 | K60: 248 | L60: 9 | M60: 68 | N60: 9 | O60: 421 | P60: 9
B61: 9578611 | C61: كريمه عبدالخالق مدبولي | D61: 2018-08-06 | E61: 1 | F61: 9 | G61: 525 | H61: 9 | I61: 825 | J61: 12 | K61: 104 | L61: 9 | M61: 68 | N61: 9 | O61: 421 | P61: 9 | Q61: 265 | R61: 9
B62: 10066508 | C62: شربات احمد عبدالمجيد | D62: 2018-08-06 | E62: 621 | F62: 6 | G62: 670 | H62: 9 | I62: 421 | J62: 9 | K62: 673 | L62: 9
B63: 9574276 | C63: كريمه عبدالحسيب احمد | D63: 2018-08-06 | E63: 488 | F63: 18 | G63: 525 | H63: 9 | I63: 825 | J63: 12 | K63: 248 | L63: 9 | M63: 68 | N63: 9 | O63: 421 | P63: 9
B64: 9495096 | C64: فاطمه توفيق عبدالمقصود | D64: 2018-08-06 | E64: 343 | F64: 8
B65: 9640746 | C65: سهام احمد محمد | D65: 2018-08-06 | E65: 343 | F65: 8
B66: 9408748 | C66: عصام عبدالقوي احمد | D66: 2018-08-06 | E66: 343 | F66: 8
B67: 9578662 | C67: صباح محمد احمد بدير | D67: 2018-08-06 | E67: 265 | F67: 18 | G67: 525 | H67: 9 | I67: 488 | J67: 18 | K67: 421 | L67: 9 | M67: 68 | N67: 9 | O67: 825 | P67: 12 | Q67: 248 | R67: 9
B68: 9581029 | C68: مسموعه محمد حسن | D68: 2018-08-06 | E68: 825 | F68: 12 | G68: 1 | H68: 9 | I68: 525 | J68: 9 | K68: 104 | L68: 9 | M68: 68 | N68: 9 | O68: 421 | P68: 9 | Q68: 265 | R68: 18
B69: 9969327 | C69: نجاه حسونه السيد | D69: 2018-08-06 | E69: 1 | F69: 9 | G69: 525 | H69: 9 | I69: 248 | J69: 9 | K69: 68 | L69: 9 | M69: 825 | N69: 12 | O69: 421 | P69: 9 | Q69: 265 | R69: 9
B70: 9677582 | C70: زينب محمد علواني | D70: 2018-08-06 | E70: 343 | F70: 8
B71: 9615503 | C71: نجات عبدالله احمد | D71: 2018-08-06 | E71: 488 | F71: 18 | G71: 525 | H71: 9 | I71: 825 | J71: 12 | K71: 248 | L71: 9 | M71: 68 | N71: 9 | O71: 421 | P71: 9 | Q71: 265 | R71: 9
B72: 9954801 | C72: محاسن توفيق حسانين | D72: 2018-08-06 | E72: 1 | F72: 9 | G72: 525 | H72: 9 | I72: 825 | J72: 12 | K72: 248 | L72: 9 | M72: 68 | N72: 9 | O72: 421 | P72: 9
B73: 10006104 | C73: زنوبه احمد محمد | D73: 2018-08-06 | E73: 265 | F73: 9 | G73: 1 | H73: 9 | I73: 421 | J73: 9 | K73: 68 | L73: 9 | M73: 825 | N73: 12 | O73: 248 | P73: 9
B74: 9658018 | C74: عطيات محمد ابراهيم | D74: 2018-08-06 | E74: 488 | F74: 18 | G74: 525 | H74: 9 | I74: 825 | J74: 12 | K74: 248 | L74: 9 | M74: 68 | N74: 9 | O74: 421 | P74: 9
B75: 9411999 | C75: اصلان عبدالغني عبدالرسول | D75: 2018-08-06 | E75: 1 | F75: 6 | G75: 525 | H75: 6 | I75: 825 | J75: 8 | K75: 248 | L75: 6 | M75: 68 | N75: 6 | O75: 421 | P75: 6
B76: 10006270 | C76: عايده بكر السيد | D76: 2018-08-06 | E76: 265 | F76: 9 | G76: 488 | H76: 18 | I76: 525 | J76: 9 | K76: 825 | L76: 12 | M76: 248 | N76: 9 | O76: 68 | P76: 9 | Q76: 421 | R76: 9
B77: 9522499 | C77: صابر عبدالعزيز محمد | D77: 2018-08-06 | E77: 623 | F77: 3 | G77: 673 | H77: 6 | I77: 670 | J77: 6 | K77: 621 | L77: 5
B78: 10024018 | C78: عزيزه عبدالفتاح محمد | D78: 2018-08-06 | E78: 1 | F78: 9 | G78: 525 | H78: 9 | I78: 825 | J78: 12 | K78: 248 | L78: 9 | M78: 68 | N78: 9 | O78: 421 | P78: 9
B79: 9954826 | C79: سميه عثمان رواش | D79: 2018-08-06 | E79: 1 | F79: 9 | G79: 265 | H79: 9 | I79: 525 | J79: 9 | K79: 825 | L79: 12 | M79: 248 | N79: 9 | O79: 68 | P79: 9 | Q79: 421 | R79: 9
B80: 10031297 | C80: ليلي حنفي عبدالسلام | D80: 2018-08-06 | E80: 265 | F80: 9 | G80: 488 | H80: 18 | I80: 525 | J80: 9 | K80: 825 | L80: 12 | M80: 248 | N80: 9 | O80: 68 | P80: 9 | Q80: 421 | R80: 9
B81: 9446692 | C81: كوثر محمد علي | D81: 2018-08-06 | E81: 488 | F81: 18 | G81: 525 | H81: 9 | I81: 825 | J81: 12 | K81: 243 | L81: 9 | M81: 79 | N81: 18 | O81: 295 | P81: 9
B82: 9815677 | C82: رضا عبدالعظيم طلبه | D82: 2018-08-06 | E82: 343 | F82: 8
B83: 9996065 | C83: صباح احمد محمود | D83: 2018-08-06 | E83: 1 | F83: 9 | G83: 525 | H83: 9 | I83: 265 | J83: 9 | K83: 825 | L83: 12 | M83: 104 | N83: 9 | O83: 421 | P83: 9
B84: 9248108 | C84: سميحه فتحي عبدالجواد | D84: 2018-08-06 | E84: 488 | F84: 12 | G84: 525 | H84: 6 | I84: 825 | J84: 8 | K84: 248 | L84: 6 | M84: 68 | N84: 6 | O84: 421 | P84: 6
B85: 9579831 | C85: رضا فرج نصر | D85: 2018-08-06 | E85: 488 | F85: 18 | G85: 525 | H85: 9 | I85: 825 | J85: 12 | K85: 248 | L85: 9 | M85: 265 | N85: 9 | O85: 68 | P85: 9
B86: 9995782 | C86: عبده عبداللطيف محمد | D86: 2018-08-06 | E86: 265 | F86: 9 | G86: 1 | H86: 9 | I86: 525 | J86: 9 | K86: 825 | L86: 12 | M86: 248 | N86: 9 | O86: 68 | P86: 9 | Q86: 421 | R86: 9
B87: 9641826 | C87: ماجده عبدالنبي صديق | D87: 2018-08-06 | E87: 265 | F87: 9 | G87: 1 | H87: 9 | I87: 525 | J87: 9 | K87: 825 | L87: 12 | M87: 248 | N87: 9 | O87: 68 | P87: 9 | Q87: 421 | R87: 9
B88: 9892069 | C88: فوزيه مسلم علي | D88: 2018-08-06 | E88: 343 | F88: 8
B89: 9996462 | C89: عفاف محمد محمود | D89: 2018-08-06 | E89: 1 | F89: 9 | G89: 525 | H89: 9 | I89: 825 | J89: 12 | K89: 248 | L89: 9 | M89: 68 | N89: 9 | O89: 421 | P89: 9
B90: 9460546 | C90: اعتماد عبدالصمد عبدالمنعم | D90: 2018-08-06 | E90: 488 | F90: 18 | G90: 525 | H90: 9 | I90: 825 | J90: 12 | K90: 248 | L90: 9 | M90: 68 | N90: 9 | O90: 265 | P90: 9
B91: 9575203 | C91: كوكب عبدالهادي علي | D91: 2018-08-06 | E91: 265 | F91: 18 | G91: 1 | H91: 9 | I91: 525 | J91: 9 | K91: 825 | L91: 12 | M91: 248 | N91: 9
B92: 9901009 | C92: سيده عبده عويس | D92: 2018-08-06 | E92: 1 | F92: 9 | G92: 825 | H92: 12 | I92: 265 | J92: 9 | K92: 248 | L92: 9
B93: 9984789 | C93: محمود السيد حلمي | D93: 2018-08-06 | E93: 343 | F93: 8
B94: 9233860 | C94: السيد عبدالستار حسن | D94: 2018-08-06 | E94: 343 | F94: 8
B95: 10011610 | C95: ريا رمضان محمدي | D95: 2018-08-06 | E95: 1 | F95: 9 | G95: 525 | H95: 9 | I95: 825 | J95: 12 | K95: 248 | L95: 9 | M95: 68 | N95: 9 | O95: 421 | P95: 9
B96: 9954818 | C96: ايمن طه محمد | D96: 2018-08-06 | E96: 488 | F96: 18 | G96: 525 | H96: 9 | I96: 825 | J96: 12 | K96: 248 | L96: 9 | M96: 68 | N96: 9 | O96: 421 | P96: 9
B97: 10031911 | C97: فاطمه ابراهيم محمد | D97: 2018-08-06 | E97: 1 | F97: 9 | G97: 525 | H97: 9 | I97: 825 | J97: 12 | K97: 248 | L97: 9 | M97: 68 | N97: 9 | O97: 421 | P97: 9 | Q97: 265 | R97: 9
B98: 10024114 | C98: اجلال عبدالخالق حميده | D98: 2018-08-06 | E98: 1 | F98: 9 | G98: 525 | H98: 9 | I98: 825 | J98: 12 | K98: 248 | L98: 9 | M98: 421 | N98: 9 | O98: 68 | P98: 9 | Q98: 265 | R98: 9
B99: 9579967 | C99: محمد العزب علي | D99: 2018-08-06 | E99: 1 | F99: 9 | G99: 525 | H99: 9 | I99: 825 | J99: 12 | K99: 248 | L99: 9 | M99: 68 | N99: 9 | O99: 421 | P99: 9
B100: 9579743 | C100: ساميه امين عبدالكريم | D100: 2018-08-06 | E100: 1 | F100: 9 | G100: 265 | H100: 9 | I100: 525 | J100: 9 | K100: 825 | L100: 12 | M100: 248 | N100: 9 | O100: 68 | P100: 9
B101: 9954755 | C101: حميده محمد ابراهيم خليل | D101: 2018-08-06 | E101: 488 | F101: 18 | G101: 525 | H101: 9 | I101: 825 | J101: 12 | K101: 248 | L101: 9 | M101: 68 | N101: 9 | O101: 421 | P101: 9
B102: 9921207 | C102: ايمان حامد حسين | D102: 2018-08-06 | E102: 1 | F102: 9 | G102: 421 | H102: 9 | I102: 265 | J102: 9 | K102: 825 | L102: 12
B103: 9574820 | C103: بيسه عيد السيد | D103: 2018-08-06 | E103: 488 | F103: 18 | G103: 525 | H103: 9 | I103: 825 | J103: 12 | K103: 248 | L103: 9 | M103: 421 | N103: 9 | O103: 68 | P103: 9 | Q103: 265 | R103: 18
B104: 9347034 | C104: عطالله عطالله احمد | D104: 2018-08-06 | E104: 265 | F104: 12 | G104: 68 | H104: 6 | I104: 825 | J104: 8
B105: 9574716 | C105: عواطف فرحات عبدالكريم | D105: 2018-08-06 | E105: 265 | F105: 9 | G105: 1 | H105: 9 | I105: 525 | J105: 9 | K105: 243 | L105: 9 | M105: 68 | N105: 9 | O105: 421 | P105: 9 | Q105: 825 | R105: 12
B106: 10007368 | C106: حسن ابراهيم مصطفي | D106: 2018-08-06 | E106: 231 | F106: 18 | G106: 79 | H106: 18 | I106: 391 | J106: 9 | K106: 421 | L106: 9 | M106: 825 | N106: 12
B107: 9248084 | C107: عيده عواد محمد | D107: 2018-08-06 | E107: 1 | F107: 6 | G107: 525 | H107: 6 | I107: 825 | J107: 8 | K107: 248 | L107: 6 | M107: 68 | N107: 6 | O107: 421 | P107: 6
B108: 10004775 | C108: نجاح رمضان عبدربه | D108: 2018-08-06 | E108: 421 | F108: 9 | G108: 68 | H108: 9 | I108: 1 | J108: 9 | K108: 525 | L108: 9 | M108: 79 | N108: 18 | O108: 248 | P108: 9 | Q108: 825 | R108: 12 | S108: 265 | T108: 9
B109: 9574715 | C109: عايده عدلي عيسي | D109: 2018-08-06 | E109: 243 | F109: 18 | G109: 282 | H109: 9 | I109: 488 | J109: 18 | K109: 525 | L109: 9 | M109: 421 | N109: 9 | O109: 825 | P109: 12 | Q109: 248 | R109: 9 | S109: 68 | T109: 9
B110: 9535071 | C110: اصلاح حسن احمد | D110: 2018-08-06 | E110: 265 | F110: 9 | G110: 1 | H110: 9 | I110: 825 | J110: 12 | K110: 248 | L110: 9 | M110: 68 | N110: 9 | O110: 421 | P110: 9 | Q110: 525 | R110: 9
B111: 10006942 | C111: حكمت طه ابراهيم | D111: 2018-08-06 | E111: 265 | F111: 18 | G111: 1 | H111: 9 | I111: 525 | J111: 9 | K111: 825 | L111: 12 | M111: 104 | N111: 9 | O111: 421 | P111: 9 | Q111: 68 | R111: 9
B112: 9188818 | C112: يحي خضر عبدالعال | D112: 2018-08-06 | E112: 343 | F112: 8
B113: 9144790 | C113: شوقيه درويش درويش | D113: 2018-08-06 | E113: 343 | F113: 8
B114: 9404737 | C114: ناديه رجب رمضان | D114: 2018-08-06 | E114: 1 | F114: 6 | G114: 525 | H114: 6 | I114: 825 | J114: 8 | K114: 248 | L114: 6 | M114: 68 | N114: 6 | O114: 421 | P114: 6
B115: 9579999 | C115: سلامه حسن احمد | D115: 2018-08-06 | E115: 1 | F115: 9 | G115: 525 | H115: 9 | I115: 825 | J115: 12 | K115: 248 | L115: 9 | M115: 68 | N115: 9 | O115: 421 | P115: 9
B116: 9578564 | C116: انور فضل ابراهيم | D116: 2018-08-06 | E116: 421 | F116: 9 | G116: 1 | H116: 9 | I116: 68 | J116: 9 | K116: 104 | L116: 9 | M116: 825 | N116: 12
B117: 9987160 | C117: راقيه محمود رمضان | D117: 2018-08-06 | E117: 265 | F117: 9 | G117: 1 | H117: 9 | I117: 525 | J117: 9 | K117: 248 | L117: 9 | M117: 825 | N117: 12 | O117: 421 | P117: 9
B118: 9412143 | C118: عزيزه عبدالرحيم محمد | D118: 2018-08-06 | E118: 488 | F118: 12 | G118: 525 | H118: 6 | I118: 825 | J118: 8 | K118: 248 | L118: 6 | M118: 68 | N118: 6 | O118: 421 | P118: 6
B119: 9578609 | C119: فايزه احمد عبدالرحيم | D119: 2018-08-06 | E119: 1 | F119: 9 | G119: 525 | H119: 9 | I119: 825 | J119: 12 | K119: 248 | L119: 9 | M119: 421 | N119: 9 | O119: 68 | P119: 9
B120: 9578552 | C120: مستوره محمود محمد | D120: 2018-08-06 | E120: 1 | F120: 9 | G120: 525 | H120: 9 | I120: 825 | J120: 12 | K120: 248 | L120: 9 | M120: 421 | N120: 9 | O120: 68 | P120: 9
B121: 9828708 | C121: علي محمد علي | D121: 2018-08-06 | E121: 343 | F121: 8
B122: 9529664 | C122: مبروكه حسن عبدالغفار | D122: 2018-08-06 | E122: 265 | F122: 9 | G122: 1 | H122: 9 | I122: 525 | J122: 9 | K122: 825 | L122: 12 | M122: 248 | N122: 9 | O122: 68 | P122: 9 | Q122: 421 | R122: 9
B123: 9578562 | C123: محاسن عبدالعزيز عبدالعال | D123: 2018-08-06 | E123: 488 | F123: 18 | G123: 525 | H123: 9 | I123: 825 | J123: 12 | K123: 248 | L123: 9 | M123: 68 | N123: 9 | O123: 421 | P123: 9
B124: 9187286 | C124: وفاء سليمان حمزه | D124: 2018-08-06 | E124: 488 | F124: 6 | G124: 525 | H124: 3 | I124: 825 | J124: 4 | K124: 248 | L124: 3 | M124: 68 | N124: 3 | O124: 421 | P124: 3
B125: 9375995 | C125: سعديه حسن الجوهري | D125: 2018-08-06 | E125: 343 | F125: 8
B126: 10031424 | C126: فاطمه صالح حسين | D126: 2018-08-06 | E126: 488 | F126: 18 | G126: 525 | H126: 9 | I126: 825 | J126: 12 | K126: 248 | L126: 9 | M126: 68 | N126: 9 | O126: 421 | P126: 9
B127: 9536402 | C127: محمد احمد محمد | D127: 2018-08-06 | E127: 1 | F127: 9 | G127: 525 | H127: 9 | I127: 825 | J127: 12 | K127: 248 | L127: 9 | M127: 421 | N127: 9 | O127: 68 | P127: 9
B128: 9007724 | C128: نعمه محمد السيد | D128: 2018-08-06 | E128: 343 | F128: 8
B129: 9321969 | C129: ماجده ابراهيم علي | D129: 2018-08-07 | E129: 418 | F129: 12 | G129: 825 | H129: 8 | I129: 79 | J129: 6 | K129: 391 | L129: 6 | M129: 68 | N129: 6
B130: 10098187 | C130: سعاد محمد ابراهيم | D130: 2018-08-07 | E130: 488 | F130: 18 | G130: 525 | H130: 9 | I130: 265 | J130: 9 | K130: 825 | L130: 12 | M130: 248 | N130: 9 | O130: 68 | P130: 9 | Q130: 421 | R130: 9
B131: 10005760 | C131: شيماء سعيد محمد | D131: 2018-08-07 | E131: 1 | F131: 9 | G131: 525 | H131: 9 | I131: 825 | J131: 12 | K131: 248 | L131: 9 | M131: 68 | N131: 9 | O131: 421 | P131: 9 | Q131: 265 | R131: 9
B132: 9631162 | C132: ماجده محمد امام | D132: 2018-08-07 | E132: 265 | F132: 9 | G132: 825 | H132: 12 | I132: 68 | J132: 9 | K132: 79 | L132: 9 | M132: 243 | N132: 9
B133: 10133256 | C133: عزت خليل ابراهيم | D133: 2018-08-07 | E133: 68 | F133: 9 | G133: 265 | H133: 9 | I133: 488 | J133: 18 | K133: 525 | L133: 9 | M133: 825 | N133: 12 | O133: 421 | P133: 9
B134: 10031513 | C134: امال احمد عبدالهادي | D134: 2018-08-07 | E134: 265 | F134: 9 | G134: 1 | H134: 9 | I134: 525 | J134: 9 | K134: 825 | L134: 12 | M134: 248 | N134: 9 | O134: 68 | P134: 9 | Q134: 421 | R134: 9
B135: 10089403 | C135: صباح محمد مندوه | D135: 2018-08-07 | E135: 1 | F135: 9 | G135: 248 | H135: 9 | I135: 825 | J135: 12 | K135: 68 | L135: 9 | M135: 525 | N135: 9 | O135: 421 | P135: 9
B136: 10024168 | C136: بشري ابراهيم عبدالجواد | D136: 2018-08-07 | E136: 1 | F136: 9 | G136: 525 | H136: 9 | I136: 825 | J136: 12 | K136: 104 | L136: 9 | M136: 68 | N136: 9 | O136: 421 | P136: 9
B137: 10007016 | C137: عبدالسلام سيد عبدالمنعم | D137: 2018-08-07 | E137: 1 | F137: 9 | G137: 525 | H137: 9 | I137: 825 | J137: 12 | K137: 248 | L137: 9 | M137: 68 | N137: 9 | O137: 421 | P137: 9 | Q137: 265 | R137: 9
B138: 9969318 | C138: عادل سيد هلال | D138: 2018-08-07 | E138: 265 | F138: 9 | G138: 488 | H138: 18 | I138: 525 | J138: 9 | K138: 825 | L138: 12 | M138: 248 | N138: 9 | O138: 421 | P138: 9 | Q138: 68 | R138: 9
B139: 10026243 | C139: سنيه حامد مبروك | D139: 2018-08-07 | E139: 265 | F139: 9 | G139: 1 | H139: 9 | I139: 525 | J139: 9 | K139: 825 | L139: 12 | M139: 104 | N139: 9 | O139: 68 | P139: 9 | Q139: 421 | R139: 9
B140: 10006213 | C140: فتحيه مهدي محمد | D140: 2018-08-07 | E140: 825 | F140: 12 | G140: 1 | H140: 9 | I140: 525 | J140: 9 | K140: 265 | L140: 9 | M140: 421 | N140: 9 | O140: 68 | P140: 9
B141: 9298805 | C141: صابر السيد عبدالفتاح | D141: 2018-08-07 | E141: 1 | F141: 6 | G141: 525 | H141: 6 | I141: 825 | J141: 8 | K141: 68 | L141: 6 | M141: 421 | N141: 6
B142: 9751920 | C142: رضا فرج الله جوده | D142: 2018-08-07 | E142: 343 | F142: 8
B143: 9547803 | C143: فرنسا كمال طوسون | D143: 2018-08-07 | E143: 1 | F143: 9 | G143: 525 | H143: 9 | I143: 825 | J143: 12 | K143: 248 | L143: 9 | M143: 68 | N143: 9 | O143: 421 | P143: 9
B144: 9406237 | C144: مني محمد عبدالحميد | D144: 2018-08-07 | E144: 343 | F144: 8
B145: 9581017 | C145: صباح عبدالفتاح عبود | D145: 2018-08-07 | E145: 265 | F145: 9 | G145: 1 | H145: 9 | I145: 525 | J145: 9 | K145: 825 | L145: 12 | M145: 248 | N145: 9 | O145: 68 | P145: 9 | Q145: 421 | R145: 9 | S145: 79 | T145: 9
B146: 10047754 | C146: سميره اسماعيل سلامه | D146: 2018-08-07 | E146: 1 | F146: 9 | G146: 525 | H146: 9 | I146: 825 | J146: 12 | K146: 248 | L146: 9 | M146: 421 | N146: 9 | O146: 68 | P146: 9 | Q146: 265 | R146: 9
B147: 9255576 | C147: ساميه صلاح امام | D147: 2018-08-07 | E147: 343 | F147: 8
B148: 9756608 | C148: ساميه صلاح امام درويش | D148: 2018-08-07 | E148: 282 | F148: 3 | G148: 243 | H148: 3 | I148: 768/1 | J148: 3 | K148: 421 | L148: 2 | M148: 68 | N148: 2
B149: 10039841 | C149: عديله محمد اسماعيل | D149: 2018-08-07 | E149: 343 | F149: 8
B150: 10033780 | C150: حمديه محمود محمد | D150: 2018-08-07 | E150: 265 | F150: 9 | G150: 488 | H150: 18 | I150: 525 | J150: 9 | K150: 825 | L150: 12 | M150: 248 | N150: 9 | O150: 68 | P150: 9 | Q150: 421 | R150: 9
B151: 9515976 | C151: مني احمد محمد | D151: 2018-08-07 | E151: 1 | F151: 9 | G151: 525 | H151: 9 | I151: 825 | J151: 12 | K151: 248 | L151: 9 | M151: 68 | N151: 9 | O151: 421 | P151: 9 | Q151: 265 | R151: 9
B152: 9988005 | C152: فتحي محمد وافي | D152: 2018-08-07 | E152: 523 | F152: 18 | G152: 525 | H152: 9 | I152: 825 | J152: 12 | K152: 248 | L152: 9 | M152: 265 | N152: 9 | O152: 621 | P152: 6 | Q152: 68 | R152: 9
B153: 9187287 | C153: ورده كامل علي | D153: 2018-08-07 | E153: 488 | F153: 6 | G153: 525 | H153: 3 | I153: 825 | J153: 4 | K153: 248 | L153: 3 | M153: 68 | N153: 3 | O153: 421 | P153: 3
B154: 9467335 | C154: نجلاء علي امام احمد | D154: 2018-08-07 | E154: 488 | F154: 12 | G154: 525 | H154: 6 | I154: 825 | J154: 8 | K154: 248 | L154: 6 | M154: 421 | N154: 6
B155: 9093580 | C155: ناديه فضل احمد | D155: 2018-08-07 | E155: 1 | F155: 3 | G155: 525 | H155: 3 | I155: 825 | J155: 4 | K155: 248 | L155: 3 | M155: 68 | N155: 3 | O155: 421 | P155: 3
B156: 9676213 | C156: فوزيه عبدالنبي يوسف | D156: 2018-08-07 | E156: 1 | F156: 9 | G156: 825 | H156: 12 | I156: 79 | J156: 18 | K156: 295 | L156: 9
B157: 9943286 | C157: انتصار محمد محمود | D157: 2018-08-07 | E157: 523 | F157: 18 | G157: 525 | H157: 9 | I157: 825 | J157: 12 | K157: 248 | L157: 9 | M157: 265 | N157: 9
B158: 9578670 | C158: صباح معروف حماد | D158: 2018-08-07 | E158: 68 | F158: 9 | G158: 421 | H158: 9 | I158: 488 | J158: 18 | K158: 525 | L158: 9 | M158: 265 | N158: 9 | O158: 825 | P158: 12 | Q158: 248 | R158: 9
B159: 9996005 | C159: صباح عبدالنبي رمزي | D159: 2018-08-07 | E159: 1 | F159: 9 | G159: 525 | H159: 9 | I159: 825 | J159: 12 | K159: 104 | L159: 9 | M159: 68 | N159: 9 | O159: 421 | P159: 9
B160: 9996005 | C160: صباح عبدالنبي رمزي | D160: 2018-08-07 | E160: 1 | F160: 9 | G160: 525 | H160: 9 | I160: 825 | J160: 12 | K160: 104 | L160: 9 | M160: 68 | N160: 9 | O160: 421 | P160: 9
B161: 9496393 | C161: هانم حسان حسن | D161: 2018-08-07 | E161: 343 | F161: 8
B162: 9402870 | C162: مقبوله مرزوق شلبي | D162: 2018-08-07 | E162: 1 | F162: 9 | G162: 825 | H162: 12 | I162: 525 | J162: 9 | K162: 421 | L162: 9
B163: 9681250 | C163: محمد شوقي محمد | D163: 2018-08-07 | E163: 343 | F163: 8
B164: 10006150 | C164: محمود سعد محمود | D164: 2018-08-07 | E164: 1 | F164: 9 | G164: 525 | H164: 9 | I164: 825 | J164: 12 | K164: 248 | L164: 9 | M164: 68 | N164: 9 | O164: 421 | P164: 9
B165: 10021598 | C165: عليه عبدالحميد محجوب | D165: 2018-08-07 | E165: 1 | F165: 9 | G165: 525 | H165: 9 | I165: 825 | J165: 12 | K165: 248 | L165: 9 | M165: 68 | N165: 9 | O165: 421 | P165: 9
B166: 9996402 | C166: سمير شعبان عبدالونيس | D166: 2018-08-07 | E166: 1 | F166: 9 | G166: 525 | H166: 9 | I166: 825 | J166: 12 | K166: 104 | L166: 9 | M166: 68 | N166: 9 | O166: 421 | P166: 9
B167: 9248062 | C167: صابرين مصطفي خليل | D167: 2018-08-07 | E167: 265 | F167: 3 | G167: 488 | H167: 6 | I167: 525 | J167: 3 | K167: 825 | L167: 4 | M167: 248 | N167: 3 | O167: 68 | P167: 3
B168: 9468181 | C168: سميحه هاشم شاكر | D168: 2018-08-07 | E168: 1 | F168: 6 | G168: 525 | H168: 6 | I168: 825 | J168: 8 | K168: 248 | L168: 8 | M168: 68 | N168: 6 | O168: 421 | P168: 6 | Q168: 265 | R168: 6
B169: 9550390 | C169: فتحيه حلمي فرج | D169: 2018-08-07 | E169: 488 | F169: 18 | G169: 525 | H169: 9 | I169: 825 | J169: 12 | K169: 248 | L169: 9 | M169: 68 | N169: 9 | O169: 421 | P169: 9 | Q169: 265 | R169: 9
B170: 10057156 | C170: نحمده حسين عبدالعزيز | D170: 2018-08-07 | E170: 68 | F170: 9 | G170: 265 | H170: 9 | I170: 488 | J170: 18 | K170: 525 | L170: 9 | M170: 825 | N170: 12 | O170: 248 | P170: 9 | Q170: 421 | R170: 9
B171: 9298737 | C171: رشا حنفي محمود | D171: 2018-08-07 | E171: 1 | F171: 6 | G171: 525 | H171: 6 | I171: 825 | J171: 8 | K171: 248 | L171: 6 | M171: 421 | N171: 6 | O171: 68 | P171: 6 | Q171: 79 | R171: 6
B172: 9483501 | C172: فوزيه عبدالعظيم محمد | D172: 2018-08-07 | E172: 1 | F172: 9 | G172: 525 | H172: 9 | I172: 825 | J172: 12 | K172: 248 | L172: 9 | M172: 68 | N172: 9 | O172: 421 | P172: 9 | Q172: 243 | R172: 9
B173: 9404501 | C173: امال جمعه اسماعيل | D173: 2018-08-07 | E173: 1 | F173: 6 | G173: 525 | H173: 6 | I173: 825 | J173: 8 | K173: 248 | L173: 6 | M173: 68 | N173: 6 | O173: 421 | P173: 6
B174: 9546711 | C174: باتعه محمد ابراهيم | D174: 2018-08-07 | E174: 343 | F174: 8
B175: 9529641 | C175: عبدالعزيز محمد عبدالغفار | D175: 2018-08-07 | E175: 1 | F175: 9 | G175: 525 | H175: 9 | I175: 825 | J175: 12 | K175: 248 | L175: 9 | M175: 68 | N175: 9 | O175: 421 | P175: 9
B176: 9536591 | C176: عائشه عبدالرحمن حسين | D176: 2018-08-07 | E176: 1 | F176: 9 | G176: 243 | H176: 9 | I176: 525 | J176: 9 | K176: 825 | L176: 12 | M176: 68 | N176: 9 | O176: 421 | P176: 9
B177: 9536851 | C177: ضاويه عبدالرحمن حسين | D177: 2018-08-07 | E177: 1 | F177: 9 | G177: 525 | H177: 9 | I177: 825 | J177: 12 | K177: 104 | L177: 9 | M177: 265 | N177: 9 | O177: 68 | P177: 9 | Q177: 421 | R177: 9
B178: 10056898 | C178: نادر صلاح فكري بخيت | D178: 2018-08-07 | E178: 1 | F178: 9 | G178: 525 | H178: 9 | I178: 825 | J178: 12 | K178: 248 | L178: 9 | M178: 68 | N178: 9 | O178: 421 | P178: 9
B179: 9568217 | C179: قدري عبدالكريم السيد | D179: 2018-08-07 | E179: 265 | F179: 9 | G179: 1 | H179: 9 | I179: 525 | J179: 9 | K179: 825 | L179: 12 | M179: 248 | N179: 9 | O179: 421 | P179: 9 | Q179: 68 | R179: 9
B180: 9952426 | C180: زينب طه خليل سعيد | D180: 2018-08-07 | E180: 265 | F180: 9 | G180: 488 | H180: 18 | I180: 525 | J180: 9 | K180: 825 | L180: 12 | M180: 248 | N180: 9 | O180: 68 | P180: 9 | Q180: 421 | R180: 9
B181: 1008997 | C181: رمضان امام عبدالشافي | D181: 2018-08-07 | E181: 243 | F181: 9 | G181: 825 | H181: 12 | I181: 488 | J181: 18 | K181: 525 | L181: 9 | M181: 421 | N181: 9 | O181: 68 | P181: 9 | Q181: 104 | R181: 9
B182: 9773391 | C182: بثينه اسماعيل احمد | D182: 2018-08-07 | E182: 343 | F182: 8
B183: 9525844 | C183: فايزه عبدالفتاح خليل | D183: 2018-08-07 | E183: 1 | F183: 9 | G183: 525 | H183: 9 | I183: 825 | J183: 12 | K183: 104 | L183: 9 | M183: 68 | N183: 9 | O183: 421 | P183: 9
B184: 9837993 | C184: احمد عبدالعظيم احمد | D184: 2018-08-07 | E184: 1 | F184: 9 | G184: 525 | H184: 9 | I184: 825 | J184: 12 | K184: 248 | L184: 9 | M184: 68 | N184: 9 | O184: 421 | P184: 9
B185: 9063298 | C185: دولت احمد محمد | D185: 2018-08-07 | E185: 1 | F185: 3 | G185: 68 | H185: 3 | I185: 825 | J185: 4
B186: 9565700 | C186: رضا محمد هيبه طنطاوي | D186: 2018-08-07 | E186: 488 | F186: 18 | G186: 525 | H186: 9 | I186: 248 | J186: 9 | K186: 421 | L186: 9 | M186: 68 | N186: 9 | O186: 825 | P186: 12
B187: 9404552 | C187: كريمه عبدربه ابوالسعود | D187: 2018-08-07 | E187: 265 | F187: 9 | G187: 488 | H187: 12 | I187: 525 | J187: 6 | K187: 248 | L187: 6 | M187: 421 | N187: 6 | O187: 68 | P187: 6
B188: 10056923 | C188: سعيد ابوالعلا بدوي | D188: 2018-08-07 | E188: 68 | F188: 9 | G188: 421 | H188: 9 | I188: 1 | J188: 9 | K188: 525 | L188: 9 | M188: 825 | N188: 12 | O188: 248 | P188: 9 | Q188: 265 | R188: 9
B189: 9775979 | C189: خديويه اسماعيل حمزه | D189: 2018-08-07 | E189: 265 | F189: 18 | G189: 1 | H189: 9 | I189: 525 | J189: 9 | K189: 825 | L189: 12 | M189: 104 | N189: 9 | O189: 68 | P189: 9 | Q189: 421 | R189: 9
B190: 9516067 | C190: ساميه رشدي شحاته | D190: 2018-08-07 | E190: 1 | F190: 9 | G190: 525 | H190: 9 | I190: 825 | J190: 12 | K190: 248 | L190: 9 | M190: 265 | N190: 9
B191: 9662385 | C191: زيناهم سيد سلامه | D191: 2018-08-07 | E191: 343 | F191: 8
B192: 10039843 | C192: يحيي عبدالمجيد محمود | D192: 2018-08-07 | E192: 343 | F192: 8
B193: 10018316 | C193: توفيق محمد حسن | D193: 2018-08-08 | E193: 343 | F193: 8
B194: 10150384 | C194: نبيل عبدالعزيز حسين | D194: 2018-08-08 | E194: 343 | F194: 8
B195: 9677524 | C195: ناهد سعد عبدالسلام | D195: 2018-08-08 | E195: 282 | F195: 6 | G195: 846 | H195: 3 | I195: 768/1 | J195: 6
B196: 9550271 | C196: ناصره سيد احمد | D196: 2018-08-08 | E196: 68 | F196: 9 | G196: 265 | H196: 9 | I196: 525 | J196: 9 | K196: 523 | L196: 18 | M196: 248 | N196: 9 | O196: 825 | P196: 12
B197: 9486661 | C197: ام محمد علي محمد | D197: 2018-08-08 | E197: 343 | F197: 8
B198: 9527734 | C198: رمضان حلمي محمد | D198: 2018-08-08 | E198: 343 | F198: 8
B199: 10015853 | C199: محمد عبدالدايم محمد | D199: 2018-08-08 | E199: 243 | F199: 18 | G199: 68 | H199: 9 | I199: 391 | J199: 9 | K199: 421 | L199: 9 | M199: 825 | N199: 12
B200: 10056428 | C200: علا بدر محمد عبدالغني | D200: 2018-08-08 | E200: 523 | F200: 18 | G200: 525 | H200: 9 | I200: 265 | J200: 9 | K200: 825 | L200: 12 | M200: 421 | N200: 9 | O200: 248 | P200: 9
B201: 9987937 | C201: عبدالرحمن محمد عبدالرحمن | D201: 2018-08-08 | E201: 265 | F201: 18 | G201: 488 | H201: 18 | I201: 525 | J201: 9 | K201: 825 | L201: 12
B202: 9679495 | C202: حماده السيد محمد | D202: 2018-08-08 | E202: 343 | F202: 4 | G202: 68 | H202: 2 | I202: 768/1 | J202: 2
B203: 9677529 | C203: لبيب محمد خليفه | D203: 2018-08-08 | E203: 768/1 | F203: 12 | G203: 846 | H203: 6 | I203: 825 | J203: 4
B204: 9455744 | C204: صباح محمد عيد | D204: 2018-08-08 | E204: 343 | F204: 8
... 784 more rows

Sheet غسيل كلى (hidden)
B2: وزارة الصحة والسكان | N2: بحث برقم القرار
B3: مديرية الشئون الصحية بالجيزة
B4: مستشفى اوسيم المركزى
D5: إذن صـــرف | N5: 9746389
Q6: د/ اية حسن محمد
B7: الاســــم: | C7: =VLOOKUP(N5,data00,2,0) -> اعتماد محمد عبد | H7: التاريخ: | I7: =VLOOKUP(C7,data,2,FALSE) -> 2018-08-19 | Q7: د/ اية عبدالناصر زكريا
Q8: د/مونيكا مجدى
B9: رقم | C9: اســــــم الصنف | D9: الكمية | F9: السعـــــــر | Q9: د/منة الله ابراهيم محمد
F10: بيع الجمهور | H10: شراء المناقصة | J10: 0.05 | K10: 0.02 | L10: الاجمالى
B11: الصنف | D11: المنصرفة | F11: وحدة | G11: مجموع | H11: وحدة | I11: مجموع
B12: =VLOOKUP(N5,data00,4,0) -> 343 | C12: =IFERROR(VLOOKUP(B12,datahosam,2,0),"") -> ايباو | D12: =VLOOKUP(N5,data00,5,0) -> 8 | E12: =IFERROR(VLOOKUP(B12,datahosam,3,0),"") -> فيال | H12: =IFERROR(VLOOKUP(B12,datahosam,4,0),"") -> 23.24 | I12: =IFERROR(H12*D12,"") -> 185.92
B13: =VLOOKUP(C7,data,5,FALSE) -> 0 | D13: =VLOOKUP(C7,data,6,FALSE) -> 0 | I13: =IFERROR(H13*D13,"") -> 
B14: =VLOOKUP(C7,data,7,FALSE) -> 0 | D14: =VLOOKUP(C7,data,8,FALSE) -> 0
B15: =VLOOKUP(C7,data,9,FALSE) -> 0 | C15: =IFERROR(VLOOKUP(B15,datahosam,2,0),"") ->  | D15: =VLOOKUP(C7,data,10,FALSE) -> 0
B16: =VLOOKUP(C7,data,11,FALSE) -> 0 | D16: =VLOOKUP(C7,data,12,FALSE) -> 0
B17: =VLOOKUP(C7,data,13,FALSE) -> 0 | D17: =VLOOKUP(C7,data,14,FALSE) -> 0
B18: =VLOOKUP(C7,data,15,FALSE) -> 0 | D18: =VLOOKUP(C7,data,16,FALSE) -> 0
B19: =VLOOKUP(C7,data,17,FALSE) -> 0 | D19: =VLOOKUP(C7,data,18,FALSE) -> 0
B20: =VLOOKUP(C7,data,19,FALSE) -> 0 | D20: =VLOOKUP(C7,data,20,FALSE) -> 0
B21: =VLOOKUP(C7,data,21,FALSE) -> 0 | D21: =VLOOKUP(C7,data,22,FALSE) -> 0
B22: =VLOOKUP(C7,data,23,FALSE) -> 0 | D22: =VLOOKUP(C7,data,24,FALSE) -> 0 | F22: =IFERROR(VLOOKUP(B22,datahosam,5,0),"") ->  | G22: =IFERROR(D22*F22,"") -> 
B23: =VLOOKUP(C7,data,25,FALSE) -> 0 | D23: =VLOOKUP(C7,data,26,FALSE) -> 0
B24: =VLOOKUP(C7,data,27,FALSE) -> 0 | C24: =IFERROR(VLOOKUP(B24,datahosam,2,0),"") ->  | D24: =VLOOKUP(C7,data,28,FALSE) -> 0
B25: =VLOOKUP(C7,data,29,FALSE) -> 0 | D25: =VLOOKUP(C7,data,30,FALSE) -> 0
B26: =VLOOKUP(C7,data,31,FALSE) -> 0 | D26: =VLOOKUP(C7,data,32,FALSE) -> 0
B27: =VLOOKUP(C7,data,33,FALSE) -> 0 | D27: =VLOOKUP(C7,data,34,FALSE) -> 0 | G27: الاجمالى | I27: =SUM(I12:I26) -> 185.92
B28: =VLOOKUP(C7,data,35,FALSE) -> 0 | D28: =VLOOKUP(C7,data,36,FALSE) -> 0
B29: =VLOOKUP(C7,data,37,FALSE) -> 0 | D29: =VLOOKUP(C7,data,38,FALSE) -> 0
B30: =VLOOKUP(C7,data,39,FALSE) -> 0 | D30: =VLOOKUP(C7,data,40,FALSE) -> 0
B31: =VLOOKUP(C7,data,41,FALSE) -> 0 | D31: =VLOOKUP(C7,data,42,FALSE) -> 0
B32: =VLOOKUP(C7,data,43,FALSE) -> 0 | D32: =VLOOKUP(C7,data,44,FALSE) -> 0
B33: =VLOOKUP(C7,data,45,FALSE) -> 0 | D33: =VLOOKUP(C7,data,46,FALSE) -> 0
B34: =VLOOKUP(C7,data,47,FALSE) -> 0 | D34: =VLOOKUP(C7,data,48,FALSE) -> 0
B35: =VLOOKUP(C7,data,49,FALSE) -> 0 | D35: =VLOOKUP(C7,data,50,FALSE) -> 0
B36: =VLOOKUP(C7,data,51,FALSE) -> 0 | D36: =VLOOKUP(C7,data,52,FALSE) -> 0
B37: =VLOOKUP(C7,data,53,FALSE) -> 0 | D37: =VLOOKUP(C7,data,54,FALSE) -> 0
B38: =VLOOKUP(C7,data,55,FALSE) -> 0 | D38: =VLOOKUP(C7,data,56,FALSE) -> 0
B39: =VLOOKUP(C7,data,57,FALSE) -> 0 | D39: =VLOOKUP(C7,data,58,FALSE) -> 0
C40: صيدلية | I40: مدير عام المستشفى
C41: د/ اية عبدالناصر زكريا | I41: د/مجدى عبدالفتاح ناصر
B44: وزارة الصحة والسكان
B45: مديرية الشئون الصحية بالجيزة
B46: مستشفى اوسيم المركزى | F46: فاتـــورة | H46: 18
B49: الاســــم: | C49: =VLOOKUP(N5,data00,2,0) -> اعتماد محمد عبد | H49: التاريخ: | I49: =VLOOKUP(C49,data,2,FALSE) -> 2018-08-19
B51: رقم | C51: اســــــم الصنف | D51: الكمية | F51: السعـــــــر
F52: شراء المناقصة | K52: الاجمالى
B53: الصنف | D53: المنصرفة | F53: وحدة | H53: مجموع
B54: =VLOOKUP(N5,data00,4,0) -> 343 | C54: =IFERROR(VLOOKUP(B54,datahosam,2,0),"") -> ايباو | D54: =VLOOKUP(N5,data00,5,0) -> 8 | E54: =IFERROR(VLOOKUP(B54,datahosam,3,0),"") -> فيال | F54: =IFERROR(VLOOKUP(B54,datahosam,4,0),"") -> 23.24 | H54: =IFERROR(F54*D54,"") -> 185.92
B55: =VLOOKUP(C49,data,5,FALSE) -> 0 | D55: =VLOOKUP(C49,data,6,FALSE) -> 0 | H55: =IFERROR(F55*D55,"") -> 
B56: =VLOOKUP(C49,data,7,FALSE) -> 0 | D56: =VLOOKUP(C49,data,8,FALSE) -> 0
B57: =VLOOKUP(C49,data,9,FALSE) -> 0 | C57: =IFERROR(VLOOKUP(B57,datahosam,2,0),"") ->  | D57: =VLOOKUP(C49,data,10,FALSE) -> 0
B58: =VLOOKUP(C49,data,11,FALSE) -> 0 | C58: =IFERROR(VLOOKUP(B58,datahosam,2,0),"") ->  | D58: =VLOOKUP(C49,data,12,FALSE) -> 0
B59: =VLOOKUP(C49,data,13,FALSE) -> 0 | D59: =VLOOKUP(C49,data,14,FALSE) -> 0
B60: =VLOOKUP(C49,data,15,FALSE) -> 0 | D60: =VLOOKUP(C49,data,16,FALSE) -> 0
B61: =VLOOKUP(C49,data,17,FALSE) -> 0 | D61: =VLOOKUP(C49,data,18,FALSE) -> 0
B62: =VLOOKUP(C49,data,19,FALSE) -> 0 | D62: =VLOOKUP(C49,data,20,FALSE) -> 0
B63: =VLOOKUP(C49,data,21,FALSE) -> 0 | D63: =VLOOKUP(C49,data,22,FALSE) -> 0
B64: =VLOOKUP(C49,data,23,FALSE) -> 0 | D64: =VLOOKUP(C49,data,24,FALSE) -> 0
B65: =VLOOKUP(C49,data,25,FALSE) -> 0 | D65: =VLOOKUP(C49,data,26,FALSE) -> 0
B66: =VLOOKUP(C49,data,27,FALSE) -> 0 | C66: =IFERROR(VLOOKUP(B66,datahosam,2,0),"") ->  | D66: =VLOOKUP(C49,data,28,FALSE) -> 0
B67: =VLOOKUP(C49,data,29,FALSE) -> 0 | C67: =IFERROR(VLOOKUP(B67,datahosam,2,0),"") ->  | D67: =VLOOKUP(C49,data,30,FALSE) -> 0
B68: =VLOOKUP(C49,data,31,FALSE) -> 0 | D68: =VLOOKUP(C49,data,32,FALSE) -> 0 | H68: =IFERROR(VLOOKUP(B68,datahosam,4,0),"") ->  | I68: =IFERROR(H68*D68,"") -> 
B69: =VLOOKUP(C49,data,33,FALSE) -> 0 | D69: =VLOOKUP(C49,data,34,FALSE) -> 0 | K69: =SUM(H54:I68) -> 185.92
B70: =VLOOKUP(C49,data,35,FALSE) -> 0 | D70: =VLOOKUP(C49,data,36,FALSE) -> 0
B71: =VLOOKUP(C49,data,37,FALSE) -> 0
B72: =VLOOKUP(C49,data,39,FALSE) -> 0
B73: =VLOOKUP(C49,data,41,FALSE) -> 0 | D73: =VLOOKUP(C49,data,42,FALSE) -> 0
B74: =VLOOKUP(C49,data,43,FALSE) -> 0 | D74: =VLOOKUP(C49,data,44,FALSE) -> 0
B75: =VLOOKUP(C49,data,45,FALSE) -> 0 | D75: =VLOOKUP(C49,data,46,FALSE) -> 0
B76: =VLOOKUP(C49,data,47,FALSE) -> 0 | D76: =VLOOKUP(C49,data,48,FALSE) -> 0
B77: =VLOOKUP(C49,data,49,FALSE) -> 0 | C77: =IFERROR( "فقط" & " "&[1]!Ar_WriteDownNumber(K69,"جنيها","مليم",1000) & " " & "مصرى لاغير","") -> فقط مائة و خمسة و ثمانون جنيها و تسعمائة و عشرون مليم مصرى لاغير
B78: =VLOOKUP(C49,data,51,FALSE) -> 0 | D78: =VLOOKUP(C49,data,52,FALSE) -> 0
B79: =VLOOKUP(C49,data,53,FALSE) -> 0 | D79: =VLOOKUP(C49,data,54,FALSE) -> 0
B80: =VLOOKUP(C49,data,55,FALSE) -> 0 | D80: =VLOOKUP(C49,data,56,FALSE) -> 0
B81: =VLOOKUP(C49,data,57,FALSE) -> 0 | D81: =VLOOKUP(C49,data,58,FALSE) -> 0
C82: صيدلية | E82: المدير المالى والإدارى | I82: مدير عام المستشفى
C83: د/ اية عبدالناصر زكريا | E83: أ/ عبدالنبى محمد عبدالحميد | I83: د/مجدى عبدالفتاح ناصر

Sheet الاصناف (hidden)
A3: صيدلية العلاج على نفقة الدولة
A4: بيان باسعار الادوية المتوفرة فى الصيدلية
A6: رقم البند | B6: اسم الصنف | C6: الوحدة | D6: سعر المناقصة | E6: سعر الجمهور | F6: ملاحظات
A7: 1 | B7: انسولين | C7: فيال | D7: 27.09 | E7: 31 | F7: 16.6
A8: 343 | B8: ايباو | C8: فيال | D8: 23.24 | E8: 115
A9: 825 | B9: ايكافيت | C9: امبول | D9: 1.33 | E9: 2.15
A10: 247 | B10: كابتوبريل25م | C10: شريط | D10: 0.96 | E10: 3
A11: 265 | B11: فاركوبريل | C11: شريط | D11: 1.32 | E11: 6.5
A12: 243 | B12: بيستول5م | C12: شريط | D12: 1.5 | E12: 4.5
A13: 295 | B13: لازكس40م | C13: شريط | D13: 1.04 | E13: 2.75
A14: 716 | B14: راميدازولاميد | C14: قطره | D14: 12
A15: 287 | B15: الداكتون100م | C15: شريط | D15: 5.93 | E15: 5
A16: 275 | B16: اتينو50م | C16: شريط | D16: 0.98 | E16: 1.75
A17: 276 | B17: اتينو100م | C17: شريط | D17: 1.16 | E17: 2.125
A18: 231 | B18: كارديوكير2.5م | C18: شريط | D18: 2.01 | E18: 2.5
A19: 79 | B19: اسبوسيد75م | C19: شريط | D19: 1.11 | E19: 1
A20: 523 | B20: جلبين5م | C20: شريط | D20: 0.8 | E20: 1
A21: 525 | B21: سيدوفاج850م | C21: شريط | D21: 1.33 | E21: 1.83
A22: 827 | B22: بيكو | C22: شريط | D22: 0.59 | E22: 0.6
A23: 421 | B23: رانتدين150م | C23: شريط | D23: 1.4 | E23: 4.95
A24: 312 | B24: كوناديون | C24: شريط | D24: 2.75 | E24: 6
A25: 2 | B25: سيلمارين140م | C25: شريط | D25: 2.38 | E25: 6
A26: 495 | B26: اورسوكول | C26: شريط | D26: 7.5 | E26: 12
A27: 857 | B27: هيبافورت | C27: شريط | D27: 2.8 | E27: 6
A28: 296 | B28: ليبونا 10 | C28: شريط | D28: 2.08 | E28: 28
A29: 282 | B29: املودبين5م | C29: شريط | D29: 0.88 | E29: 6
A30: 248 | B30: براكسيلان | C30: شريط | D30: 14.9
A31: 695 | B31: امبروكسول | C31: زجاجة | D31: 3.368 | E31: 5
A32: 418 | B32: بانتوبرازول | C32: شريط | D32: 2.807 | E32: 12.5
A33: 104 | B33: بريجابا | C33: شريط | D33: 6.18 | E33: 0.75
A34: 281 | B34: اكس فورج | C34: شريط | D34: 33.66 | E34: 4.5
A35: 105 | B35: ماجنابيوتيك | C35: شريط | D35: 14.608 | E35: 20.5
B36: ليبونا20 | C36: شريط | D36: 2.59
A37: 272 | B37: اندرال10 | C37: شريط | D37: 0.32 | E37: 1
A38: 771 | B38: بون كير.5 جرام | C38: شريط | D38: 7.43
A39: 293 | B39: كلاتكس75م | C39: شريط | D39: 1.94 | E39: 14
A40: 140 | B40: فاموتيدين 40مجم | C40: شريط | D40: 3 | E40: 8
A41: 68 | B41: باراسيتامول | C41: شريط | D41: 1.19 | E41: 1.25
A42: 296 | B42: اتور 10 | C42: 7شريط | D42: 1.45 | E42: 11
A43: 670 | B43: ثيوفيللين | C43: شريط | D43: 2.55 | E43: 3
A44: 621 | B44: فنتال مركب | C44: بخاخ | D44: 22.2 | E44: 20
A45: 619 | B45: فنتال عادى | C45: بخاخ | D45: 11.25 | E45: 12
A46: 673 | B46: سالبيوتامول | C46: شريط | D46: 0.78 | E46: 1.05
A47: 623 | B47: بيوديلايزر | C47: بخاخ | D47: 47.88 | E47: 66
A48: 768/1 | B48: فاروكال | C48: شريط | D48: 1.32 | E48: 1.5
A49: 846 | B49: بون وان5.م.ج | C49: شريط | D49: 4.13 | E49: 8
A50: 481 | B50: جلوكان | C50: شريط | D50: 2.63 | E50: 6.15
A51: 391 | B51: اتور 20 | C51: 7قرص | D51: 1.81
A52: 146 | B52: لاكتيلوز | C52: زجاجه | D52: 8.83
A53: 754 | B53: نيوروفيت | C53: شريط | D53: 1.99
A54: 756 | B54: نيورفيت | C54: امبول | D54: 1
A55: 827 | B55: بيكو | C55: شريط | D55: 0.59
A56: 772 | B56: بون كير1 جرام | C56: شريط | D56: 9.36
A57: 488 | B57: ديابينور | C57: شريط | D57: 0.68
A58: 119 | B58: أنتودين 40مجم | C58: شريط | D58: 3.41
A59: 420 | B59: أزماتك | C59: 7اقراص | D59: 3.514
A60: 465 | B60: اوزولاميد | C60: قطره | D60: 13.95
B61: فاموتيدين 40مجم | D61: 3
A62: 2018-08-05 | B62: نصر محمد عمر | C62: 9084174

Sheet جرد (hidden)
D1: 1 | E1: 343 | F1: 825 | G1: 266 | H1: 265 | I1: 243 | J1: 295 | K1: 496 | L1: 299 | M1: 275 | N1: 276 | O1: 248 | P1: 79 | Q1: 523 | R1: 525 | S1: 827 | T1: 446 | U1: 329 | V1: 2 | W1: 495 | X1: 857 | Y1: 306 | Z1: 282 | AA1: 460 | AC1: 695 | AD1: 444 | AE1: 412 | AF1: 528 | AG1: 113 | AH1: 273 | AI1: 272 | AJ1: 3 | AK1: 303 | AL1: 638 | AM1: 70 | AN1: 4 | AO1: 670 | AP1: 678 | AQ1: 676 | AR1: 673 | AS1: 683 | AT1: 844 | AU1: 846 | AV1: 438 | AW1: 262
A2: تاريخ الصرف | B2: اسم المريض | C2: رقم القرار | D2: انسولين | E2: ايباو | F2: ايكافيت | G2: كابتوبريل 25م | H2: فاركوبريل | I2: بيستول 5م | J2: لازكس 40م | K2: بيليكول | L2: 299الداكتون 100م | M2: 275 اتينو 50م | N2: اتينو100م | O2: 248كاردكيور | P2: 79 اسبوسيد 75م | Q2: 523 جلبين 5م | R2: 525 سيدوفاج 850م | S2: 827 بيكو | T2: 446 رانتدين 150م | U2: 329 كوناديون | V2: 2 سيلمارين 140م | W2: 495 اورسوكول | X2: 857 هيبافورت | Y2: 306 اتور10م | Z2: 282 املودبين5م | AA2: 460 دومبيريدون | AC2: 695 امبركسول | AD2: 444 بانتوبرازول | AE2: 412 انالرج | AF2: 528 دياميدزين60 | AG2: 113 ماجنابيوتيك | AH2: 273 اندرال 40 | AI2: 272 اندرال | AJ2: 3 سيديلاك | AK2: 303 كلاتكس 75م | AL2: 638 جابنتين100م | AM2: 70باراسيتامول | AN2: ال -كارنتين | AO2: ثيوفيللين 670 | AP2: 678 فنتال مركب | AQ2: 676 فنتال عادى | AR2: 673 سالبيوتامول | AS2: 683 ميفلونيد | AT2: 844 كالسيمات | AU2: 846 بون وان | AV2: 438 انزيمات هاضمة | AW2: 262 سينوبريل

Sheet Macros

Sheet المتبقى (hidden)
A1: رقم القرار | B1: الاســــم | C1: مبلغ القرار | D1: المنصرف | E1: المتبقى | F1: يناير | G1: فبراير | H1: مارس | I1: ابريل | J1: مايو | K1: يونيو | L1: يوليو | M1: اغسطس | N1: سبتمبر | O1: اكتوبر | P1: نوفمبر | Q1: ديسمبر
A2: 123 | B2: حسام عبدالمحسن | C2: 1000 | D2: =F2+G2+H2+I2+J2+K2+L2+M2+N2+O2+P2+Q2 -> 225.21 | E2: =C2-D2 -> 774.79 | F2: 100 | G2: 125.21
